{"text_format":"3","workbook":"xlsx","n_sheets":2,"sheets":["list","data"],"not_rendered":{"defined_names":8},"read":"whole","date_system":"1900"}

{"sheet":"list","index":0,"n_rows":81,"n_cols":14,"rows_kept":81}
["№","Название ОУ","Фамилия","Имя","Отчество","Класс","Класс участия","Первичный балл","Добавлено по итогам апелляций","Итоговый балл","Макс. Балл","Статус","Учитель","Место работы учителя"]
[1,"МБОУ \"СОШ №1\"","Суяргулов","А","В",3,3,57,null,{"$f":"H2+I2","v":57},100,"призер","Соловьева Светлана Анатольевна","МБОУ \"СОШ№1\""]
[2,"МБОУ \"СОШ №1\"","Аглилиуллина","К","И",3,3,57,null,{"$f":"H3+I3","v":57},100,"призер","Митюшкина Надежда Викторовна","МБОУ \"СОШ№1\""]
[3,"МБОУ \"СОШ №1\"","Сахаухова","А","М",3,3,32,null,32,100,"участник","Митюшкина Надежда Викторовна","МБОУ \"СОШ№1\""]
[4,"МБОУ \"СОШ №1\"","Черезова","К","А",3,3,36,null,36,100,"участник","Власова Ольга Анатольевна","МБОУ \"СОШ№1\""]
[5,"МБОУ \"СОШ №1\"","Пятибратов","Е","С",3,3,24,null,24,100,"участник","Власова Ольга Анатольевна","МБОУ \"СОШ№1\""]
[6,"МБОУ \"СОШ №1\"","Жарова","В","А",3,3,34,null,34,100,"участник","Власова Ольга Анатольевна","МБОУ \"СОШ№1\""]
[7,"МБОУ \"СОШ №2\" г. Мензелинска РТ","Куклов","М","А",3,3,32,null,32,100,"участник","Гатиатова Аделина Фаилевна","МБОУ СОШ 2"]
[8,"МБОУ \"СОШ №3\"","Жирнова","К","Ю",3,4,57,null,57,100,"призер","Алешкина Светлана Владимировна","МБОУ \"СОШ №3\""]
[9,"МБОУ \"СОШ №3\"","Григорьев","И","Р",3,4,34,null,34,100,"участник","Федотова Роза Владимировна","МБОУ \"СОШ №3\""]
[10,"МБОУ \"СОШ №3\"","Лазарев","С","Е",3,4,32,null,32,100,"участник","Алешкина Светлана Владимировна","МБОУ \"СОШ №3\""]
[11,"МБОУ \"Гимназия\" г.Мензелинска РТ","Авзалтдинова","М","Р",3,3,58,null,58,100,"призер","Мухамадеева Раушания Шамиловна","МБОУ \"Гимназия\"г. Мензелинск РТ"]
[12,"МБОУ \"Гимназия\" г.Мензелинска РТ","Марданов","Р","Ф",3,3,20,null,20,100,"участник","Пузырева Гульназ Изаеловна","МБОУ \"Гимназия\"г. Мензелинск РТ"]
[13,"МБОУ \"Гимназия\" г.Мензелинска РТ","Шакиров","А","Р",3,3,16,null,16,100,"участник","Пузырева Гульназ Изаеловна","МБОУ \"Гимназия\"г. Мензелинск РТ"]
[14,"МБОУ \"Кадряковская ООШ\"","Галиуллин","Р","Р",3,3,22,null,22,100,"участник","Сафиуллина Гульсина Шаеховна","МБОУ \"Кадряковская ООШ\""]
[15,"МБОУ \"Верхнетакерменская ООШ им. Г.Сабитова\"","Билалова","А","И",3,3,24,null,24,100,"участник","Фаррахова Миляуша Рафисовна","Верхнетакерменская ООШ"]
[16,"МБОУ \"Верхнетакерменская ООШ им. Г.Сабитова\"","Делфенуров","Г","С",3,3,42,null,42,100,"участник","Фаррахова Миляуша Рафисовна","Верхнетакерменская ООШ"]
[17,"МБОУ \"СОШ №1\"","Митюшкин","И","Е",4,4,76,null,76,100,"победитель","Коршунова Елена Анатольевна","МБОУ \"СОШ№1\""]
[18,"МБОУ \"СОШ №1\"","Рязанова","А","А",4,4,48,null,48,100,"участник","Коршунова Елена Анатольевна","МБОУ \"СОШ№1\""]
[19,"МБОУ \"СОШ №1\"","Ситдикова","А","О",4,4,65,null,65,100,"призер","Коршунова Елена Анатольевна","МБОУ \"СОШ№1\""]
[20,"МБОУ \"СОШ №1\"","Митюшкин","Д","Ю",4,4,65,null,65,100,"призер","Коршунова Елена Анатольевна","МБОУ \"СОШ№1\""]
[21,"МБОУ \"СОШ №1\"","Липин","Д","И",4,4,33,null,33,100,"участник","Коршунова Елена Анатольевна","МБОУ \"СОШ№1\""]
[22,"МБОУ \"СОШ №1\"","Султанов","К","Р",4,4,34,null,34,100,"участник","Чистякова Нэля Марсовна","МБОУ \"СОШ№1\""]
[23,"МБОУ \"СОШ №1\"","Елхов","А","А",4,4,42,null,42,100,"участник","Чистякова Нэля Марсовна","МБОУ \"СОШ№1\""]
[24,"МБОУ \"СОШ №1\"","Бочкарев","Е","Д",4,4,65,null,65,100,"призер","Чистякова Нэля Марсовна","МБОУ \"СОШ№1\""]
[25,"МБОУ \"СОШ №1\"","Ардыханова","Р","Р",4,4,26,null,26,100,"участник","Митюшкина Людмила Александровна","МБОУ \"СОШ№1\""]
[26,"МБОУ \"СОШ №1\"","Петухов","К","М",4,4,72,null,72,100,"победитель","Митюшкина Людмила Александровна","МБОУ \"СОШ№1\""]
[27,"МБОУ \"СОШ №1\"","Чуркин","Д","Р",4,4,55,null,55,100,"призер","Митюшкина Людмила Александровна","МБОУ \"СОШ№1\""]
[28,"МБОУ \"СОШ №2\" г. Мензелинска РТ","Хусаенов","А","Р",4,4,42,null,42,100,"участник","Бочкарева Надежда Андреевна","МБОУ СОШ 2"]
[29,"МБОУ \"СОШ №2\" г. Мензелинска РТ","Липина","У","С",4,4,37,null,37,100,"участник","Бочкарева Надежда Андреевна","МБОУ СОШ 2"]
[30,"МБОУ \"СОШ №2\" г. Мензелинска РТ","Шакирова","Р","И",4,4,65,null,65,100,"призер","Нургалиева Юлия Ивановна","МБОУ СОШ 2"]
[31,"МБОУ \"СОШ №2\" г. Мензелинска РТ","Токаренко","У","В",4,4,38,null,38,100,"участник","Нургалиева Юлия Ивановна","МБОУ СОШ 2"]
[32,"МБОУ \"СОШ №2\" г. Мензелинска РТ","Казакова","А","А",4,4,28,null,28,100,"участник","Бочкарева Надежда Андреевна","МБОУ СОШ 2"]
[33,"МБОУ \"СОШ №3\"","Фахразиев","Р","Р",4,4,65,null,65,100,"призер","Петрова Оксана Юрьевна","МБОУ \"СОШ №3\""]
[34,"МБОУ \"СОШ №3\"","Зиннуров","Д","А",4,4,40,null,40,100,"участник","Жарова Ольга Анатольевна","МБОУ \"СОШ №3\""]
[35,"МБОУ \"Николаевская ООШ им. С.А. Кузнецова\"","Смиренников","Г","А",4,4,28,null,28,100,"участник","Фуреева Лидия Вячеславовна","МБОУ \"Николаевская ООШ им. С.А.Кузнецова\""]
[36,"МБОУ \"Гимназия\" г.Мензелинска РТ","Маннаков","И","Р",4,4,46,null,46,100,"участник","Асылгареева Гулися Хатиповна","МБОУ \"Гимназия\"г. Мензелинск РТ"]
[37,"МБОУ \"Гимназия\" г.Мензелинска РТ","Салихов","С","И",4,4,46,null,46,100,"участник","Асылгареева Гулися Хатиповна","МБОУ \"Гимназия\"г. Мензелинск РТ"]
[38,"МБОУ \"Подгорнобайларская ООШ\"","Билалова","А","А",4,4,22,null,22,100,"участник","Сафиуллина Рузиля Билусовна","МБОУ\"Подгорнобайларская ООШ\" Мензелинского муниципального района РТ"]
[39,"МБОУ \"Верхнетакерменская ООШ им. Г.Сабитова\"","Фахуртдинов","А","Р",4,4,24,null,24,100,"участник","Фархаева Зульфия Рависовна","Верхнетакерменская ООШ"]
[40,"МБОУ \"Верхнетакерменская ООШ им. Г.Сабитова\"","Якиева","С","Р",4,4,32,null,32,100,"участник","Фархаева Зульфия Рависовна","Верхнетакерменская ООШ"]
[41,"МБОУ \"Подгорнобайларская ООШ\"","Нургалиева","И","Р",5,5,36,null,36,100,"участник","Мирзасалихов Азат Маратович","МБОУ\"Подгорнобайларская ООШ\" Мензелинского муниципального района РТ"]
[42,"МБОУ \"Урусовская ООШ имени Р.Закирова\"","Бурганова","А","И",5,5,22,null,22,100,"участник","Маузеев Илдус Рафаэльевич","МБОУ \"Урусовская ООШ имени Р.Закирова\""]
[43,"МБОУ \"Верхнетакерменская ООШ им. Г.Сабитова\"","Арысланов","И","И",5,5,56,null,56,100,"призер","Сахапова Миляуша Газизяновна","МБОУ \"Верхнетакерменская ООШ\""]
[44,"МБОУ \"Верхнетакерменская ООШ им. Г.Сабитова\"","Файзуллоев","Ё","С",5,5,34,null,34,100,"участник","Сахапова Миляуша Газизяновна","МБОУ \"Верхнетакерменская ООШ\""]
[45,"МБОУ \"СОШ №3\"","Вагыйзов","Р","Р",5,5,60,null,60,100,"призер","Жирнов Юрий Викторович","МБОУ \"СОШ №3\""]
[46,"МБОУ \"СОШ №3\"","Газизов","К","К",5,5,28,null,28,100,"участник","Жирнов Юрий Викторович","МБОУ \"СОШ №3\""]
[47,"МБОУ \"СОШ №3\"","Сахапов ","А","А",5,5,54,null,54,100,"призер","Жирнов Юрий Викторович","МБОУ \"СОШ №3\""]
[48,"МБОУ \"СОШ №1\"","Валеев","Н","В",6,6,76,null,76,100,"победитель","Пакшин Игорь Витальевич","МБОУ \"СОШ№1\""]
[49,"МБОУ \"СОШ №3\"","Сысоев","А","Д",6,6,36,null,36,100,"участник","Жирнов Юрий Викторович","МБОУ СОШ 3"]
[50,"МБОУ \"Аюская ООШ имени Р.Х.Кагирова\"","Фаррахов","А","Ф",6,6,14,null,14,100,"участник","Набиева Салиса Раффаковна","МБОУ \"Аюская ООШ имени Р.Х.Кагирова\""]
[51,"МБОУ \"Кадряковская ООШ\"","Ханов","К","Р",6,6,27,null,27,100,"участник","Набиуллина Энзе Ханифовна","МБОУ \"Кадряковская ООШ\""]
[52,"МБОУ \"Урусовская ООШ имени Р.Закирова\"","Ковалёв","К","М",6,6,27,null,27,100,"участник","Маузеев Илдус Рафаэльевич","МБОУ \"Урусовская ООШ имени Р.Закирова\""]
[53,"МБОУ \"СОШ №1\"","Гурьянов","Я","А",7,7,57.3,null,57.3,301,"призер","Пакшин Игорь Витальевич","МБОУ \"СОШ№1\""]
[54,"МБОУ \"СОШ №1\"","Набиева","Р","Р",7,7,77.6,null,77.6,301,"победитель","Пакшин Игорь Витальевич","МБОУ \"СОШ№1\""]
[55,"МБОУ \"Урусовская ООШ имени Р.Закирова\"","Газизянов","С","Ф",7,7,34.2,null,34.2,301,"участник","Маузеев Илдус Рафаэльевич","МБОУ \"Урусовская ООШ имени Р.Закирова\""]
[56,"МБОУ \"СОШ №3\"","Сулейманов","Д","Р",8,8,77.6,null,77.6,301,"победитель","Жирнов Юрий Викторович","МБОУ СОШ 3"]
[57,"МБОУ \"Калтаковская СОШ\"","Бискибальный","Р","Д",8,8,38.3,null,38.3,301,"участник","Гараев Фанияр Мизхатович","МБОУ \"Калтаковская СОШ\""]
[58,"МБОУ \"Гимназия\" г.Мензелинска РТ","Адиева","А","И",8,8,43.1,null,43.1,301,"участник","Самигулин Марат Мидхатович","МБОУ \"Гимназия\" г.Мензелинска РТ"]
[59,"МБОУ \"Гимназия\" г.Мензелинска РТ","Гараева","И","И",8,8,37,null,37,301,"участник","Самигулин Марат Мидхатович","МБОУ \"Гимназия\" г.Мензелинска РТ"]
[60,"МБОУ \"Кадряковская ООШ\"","Полушкина","В","А",8,8,37.4,null,37.4,301,"участник","Набиуллина Энзе Ханифовна","МБОУ \"Кадряковская ООШ\""]
[61,"МБОУ \"Татарскомушугинская СОШ им.К.А.Смирновой\"","Зарипов","А","И",8,8,42.8,null,42.8,301,"участник","Камалов Анвар Мунавирович","МБОУ \"Татарскомушугинская СОШ имени К.А.Смирновой\""]
[62,"МБОУ \"Верхнетакерменская ООШ им. Г.Сабитова\"","Гимадиева","Ч","А",8,8,56.1,null,56.1,301,"призер","Сахапова Миляуша Газизяновна","МБОУ \"Верхнетакерменская ООШ\""]
[63,"МБОУ \"СОШ №2\" г. Мензелинска РТ","Гудовских","Г","Д",9,9,78,null,78,300,"победитель","Халимов Райхан Ахметшаехович","МБОУ СОШ 2"]
[64,"МБОУ \"СОШ №2\" г. Мензелинска РТ","Атласов","А","А",9,9,48,null,48,300,"участник","Халимов Райхан Ахметшаехович","МБОУ СОШ 2"]
[65,"МБОУ \"СОШ №2\" г. Мензелинска РТ","Муринов","Г","С",9,9,56,null,56,300,"призер","Халимов Райхан Ахметшаехович","МБОУ СОШ 2"]
[66,"МБОУ \"СОШ №3\"","Шихмуратов","А","И",9,9,64,null,64,300,"призер","Жирнов Юрий Викторович","МБОУ СОШ 3"]
[67,"МБОУ \"Калтаковская СОШ\"","Мухамадъяров","С","Ф",9,9,23,null,23,300,"участник","Гараев Фанияр Мизхатович","МБОУ \"Калтаковская СОШ\""]
[68,"МБОУ \"Матвеевская ООШ","Минникаев","Н","Р",9,9,28,null,28,300,"участник","Закиров Василь Закирянович","МБОУ \"Матвеевская ООШ\""]
[69,"МБОУ \"Матвеевская ООШ","Мухаметзянова","Р","И",9,9,34,null,34,300,"участник","Закиров Василь Закирянович","МБОУ \"Матвеевская ООШ\""]
[70,"МБОУ \"Николаевская ООШ им. С.А. Кузнецова\"","Белянинов","Е","А",9,9,15,null,15,300,"участник","Новиков Александр Сергеевич","МБОУ \"Николаевская ООШ им. С.А. Кузнецова\""]
[71,"МБОУ \"Аюская ООШ имени Р.Х.Кагирова\"","Борханова","А","И",9,9,33,null,33,300,"участник","Набиева Салиса Раффаковна","МБОУ \"Аюская ООШ имени Р.Х.Кагирова\""]
[72,"МБОУ \"Кадряковская ООШ\"","Валиева","Л","М",9,9,44,null,44,300,"участник","Набиуллина Энзе Ханифовна","МБОУ \"Кадряковская ООШ\""]
[73,"МБОУ \"Кадряковская ООШ\"","Фаттахова","А","А",9,9,45,null,45,300,"участник","Набиуллина Энзе Ханифовна","МБОУ \"Кадряковская ООШ\""]
[74,"МБОУ \"Подгорнобайларская ООШ\"","Закиров","Н","Р",9,9,35,null,35,300,"участник","Мирзасалихов Азат Маратович","МБОУ\"Подгорнобайларская ООШ\" Мензелинского муниципального района РТ"]
[75,"МБОУ \"Татарскомушугинская СОШ им.К.А.Смирновой\"","Аглиев","Н","Р",9,9,47,null,47,300,"участник","Камалов Анвар Мунавирович","МБОУ \"Татарскомушугинская СОШ имени К.А.Смирновой\""]
[76,"МБОУ \"Урусовская ООШ имени Р.Закирова\"","Ковалёв","Г","М",9,9,32,null,32,300,"участник","Маузеев Илдус Рафаэльевич","МБОУ \"Урусовская ООШ имени Р.Закирова\""]
[77,"МБОУ \"Верхнетакерменская ООШ им. Г.Сабитова\"","Гимастинов","Д","И",9,9,47,null,47,300,"участник","Сахапова Миляуша Газизяновна","МБОУ \"Верхнетакерменская ООШ\""]
[78,"МБОУ \"СОШ №2\" г. Мензелинска РТ","Шакиров","Р","И",10,10,57.4,null,57.4,300,"призер","Халимов Райхан Ахметшаехович","МБОУ СОШ 2"]
[79,"МБОУ \"Гимназия\" г.Мензелинска РТ","Галиев","А","Ф",10,10,76.7,null,{"$f":"H80+I81","v":76.7},300,"участник","Самигулин Марат Мидхатович","МБОУ \"Гимназия\" г.Мензелинска РТ"]
[80,"МБОУ \"Гимназия\" г.Мензелинска РТ","Закиров","И","И",10,10,42.3,null,42.3,300,"победитель","Самигулин Марат Мидхатович","МБОУ \"Гимназия\" г.Мензелинска РТ"]

{"sheet":"data","index":1,"n_rows":25,"n_cols":10,"rows_kept":25}
[{"$nulls":6},"1 - Техника, технология и техническое творчество","2 - Культура дома, дизайн и технологии","3 - Робототехника","4 - Информационная безопасность"]
["1 - Техника, технологии и техническое творчество","1.1  Практика по ручной деревообработке",{"$nulls":4},"1.1 Практика по ручной деревообработке","2.1 Ручная обработка швейного изделия или узла","3.1 Робототехника","4.1 Не предусмотрена"]
["2 - Культура дома, дизайн и технологии","1.2 Практика по механической деревообработке",{"$nulls":4},"1.2 Практика по механической деревообработке","2.2 Механическая обработка швейного изделия или узла + Моделирование"]
["3 - Робототехника","1.3 Практика по ручной металлообработке",{"$nulls":4},"1.3 Практика по ручной металлообработке","2.3 Обработка швейного изделия или узла на швейно-вышивальном оборудовании + Моделирование"]
["4 - Информационная безопасность","1.4 Практика по механической металлообработке",{"$nulls":4},"1.4 Практика по механической металлообработке","2.4 3D-моделирование и печать"]
[null,"1.5 Электрорадиотехника",{"$nulls":4},"1.5 Электрорадиотехника","2.5 Практика по работе на лазерно-гравировальном станке"]
[null,"1.6 3D-моделирование и печать",{"$nulls":4},"1.6 3D-моделирование и печать","2.6 Промышленный дизайн"]
[null,"1.7 Практика по работе на лазерно-гравировальном станке",{"$nulls":4},"1.7 Практика по работе на лазерно-гравировальном станке"]
[null,"1.8 Промышленный дизайн",{"$nulls":4},"1.8 Промышленный дизайн"]
[null,"2.1 Ручная обработка швейного изделия или узла"]
[null,"2.2 Механическая обработка швейного изделия или узла + Моделирование"]
[null,"2.3 Обработка швейного изделия или узла на швейно-вышивальном оборудовании + Моделирование"]
[null,"2.4 3D-моделирование и печать"]
[null,"2.5 Практика по работе на лазерно-гравировальном станке"]
[null,"2.6 Промышленный дизайн"]
[null,"3.1 Робототехника"]
[null,"4.1 Не предусмотрена"]
[]
[]
[]
[]
[]
["участник"]
["призер",null,"да","да",null,"м"]
["победитель",null,null,"нет",null,"ж"]